fUST/lending_fUST_20260509
["ID","MTS","AMOUNT","RATE_DAILY","PERIOD"]
[421876343,1778262641000,-500.0,0.00013424,2]
[421876333,1778262641000,-310.6,0.00013308,2]
[421876341,1778262641000,-505.2,0.00013424,2]
[421876351,1778262641000,-506.24,0.00013424,2]
[421876505,1778262642000,-324.79416231,0.00014246,2]
[421876506,1778262642000,-3266.07,0.00014246,2]
[421876502,1778262642000,-500.0,0.00014246,2]
[421876501,1778262642000,-505.2,0.00014246,2]
[421876508,1778262642000,-506.24,0.00014246,2]
[421876498,1778262642000,-2083.49362178,0.00014175,2]
[421876503,1778262642000,-500.0,0.00014246,2]
[421876510,1778262642000,-635.3,0.00014246,2]
[421876496,1778262642000,-200.70124432,0.00014,2]
[421876500,1778262642000,-500.0,0.00014246,2]
[421876497,1778262642000,-200.0,0.00014159,2]
[421876511,1778262642000,-500.0,0.00014246,2]
[421876514,1778262642000,-564.69,0.00014246,2]
[421876539,1778262642000,-635.3,0.0001452,2]
[421876513,1778262642000,-500.0,0.00014246,2]
[421876516,1778262642000,-500.0,0.00014246,2]
[421876521,1778262642000,-519.15,0.00014246,2]
[421876522,1778262642000,-549.41,0.00014246,2]
[421876517,1778262642000,-906.83,0.00014246,2]
[421876527,1778262642000,-558.5,0.00014246,2]
[421876524,1778262642000,-500.0,0.00014246,2]
[421876519,1778262642000,-1043.9,0.00014246,2]
[421876531,1778262642000,-505.2,0.0001452,2]
[421876532,1778262642000,-500.0,0.0001452,2]
[421876529,1778262642000,-500.0,0.0001452,2]
[421876534,1778262642000,-500.0,0.0001452,2]
[421876536,1778262642000,-3266.07,0.0001452,2]
[421876484,1778262642000,-500.0,0.00013972,2]
[421876526,1778262642000,-500.0,0.00014246,2]
[421876494,1778262642000,-500.0,0.00013972,2]
[421876462,1778262642000,-500.0,0.00013972,2]
[421876480,1778262642000,-564.69,0.00013972,2]
[421876441,1778262642000,-558.5,0.00013698,2]
[421876431,1778262642000,-1043.9,0.00013698,2]
[421876443,1778262642000,-180.12969338,0.00013699,2]
[421876433,1778262642000,-519.15,0.00013698,2]
[421876439,1778262642000,-500.0,0.00013698,2]
[421876449,1778262642000,-1000.0,0.00013699,2]
[421876437,1778262642000,-500.0,0.00013698,2]
[421876435,1778262642000,-549.41,0.00013698,2]
[421876447,1778262642000,-1749.804395,0.00013699,2]
[421876445,1778262642000,-1000.0,0.00013699,2]
[421876455,1778262642000,-500.0,0.00013972,2]
[421876451,1778262642000,-200.0,0.00013733,2]
[421876452,1778262642000,-2734.76689149,0.00013792,2]
[421876481,1778262642000,-379.98681271,0.00013972,2]
[421876460,1778262642000,-500.0,0.00013972,2]
[421876458,1778262642000,-500.0,0.00013972,2]
[421876464,1778262642000,-3266.07,0.00013972,2]
[421876457,1778262642000,-505.2,0.00013972,2]
[421876469,1778262642000,-506.24,0.00013972,2]
[421876473,1778262642000,-635.3,0.00013972,2]
[421876478,1778262642000,-500.0,0.00013972,2]
[421876475,1778262642000,-500.0,0.00013972,2]
[421876488,1778262642000,-1043.9,0.00013972,2]
[421876492,1778262642000,-549.41,0.00013972,2]
[421876486,1778262642000,-906.83,0.00013972,2]
[421876495,1778262642000,-558.5,0.00013972,2]
[421876493,1778262642000,-500.0,0.00013972,2]
[421876490,1778262642000,-519.15,0.00013972,2]
[421876537,1778262642000,-506.24,0.0001452,2]
[421876542,1778262642000,-500.0,0.0001452,2]
[421876629,1778262642000,-505.2,0.00015068,2]
[421876544,1778262642000,-564.69,0.0001452,2]
[421876605,1778262642000,-537.6845,0.00014883,2]
[421876602,1778262642000,-2734.76689149,0.00014862,2]
[421876609,1778262642000,-331.20680902,0.000149,2]
[421876621,1778262642000,-168.8941183,0.00015,2]
[421876610,1778262642000,-331.20680902,0.000149,2]
[421876614,1778262642000,-38000.0,0.00014999,2]
[421876607,1778262642000,-4607.93696009,0.000149,2]
[421876618,1778262642000,-10159.02338976,0.00015,2]
[421876619,1778262642000,-13621.88844776,0.00015,3]
[421876612,1778262642000,-38000.0,0.0001499,2]
[421876625,1778262642000,-200.0,0.00015009,2]
[421876623,1778262642000,-168.8941183,0.00015,2]
[421876627,1778262642000,-444.31,0.00015068,2]
[421876587,1778262642000,-500.0,0.00014794,2]
[421876616,1778262642000,-22306.32931062,0.00014999,2]
[421876643,1778262642000,-564.69,0.00015068,2]
[421876632,1778262642000,-500.0,0.00015068,2]
[421876648,1778262642000,-1043.9,0.00015068,2]
[421876639,1778262642000,-241.37,0.00015068,2]
[421876641,1778262642000,-500.0,0.00015068,2]
[421876645,1778262642000,-500.0,0.00015068,2]
[421876634,1778262642000,-3266.07,0.00015068,2]
[421876636,1778262642000,-506.24,0.00015068,2]
[421876647,1778262642000,-906.83,0.00015068,2]
[421876650,1778262642000,-519.15,0.00015068,2]
[421876637,1778262642000,-635.3,0.00015068,2]
[421876652,1778262642000,-549.41,0.00015068,2]
[421876540,1778262642000,-500.0,0.0001452,2]
[421876630,1778262642000,-500.0,0.00015068,2]
[421876598,1778262642000,-500.0,0.00014794,2]
[421876654,1778262642000,-500.0,0.00015068,2]
[421876589,1778262642000,-906.83,0.00014794,2]
[421876586,1778262642000,-564.69,0.00014794,2]
[421876545,1778262642000,-500.0,0.0001452,2]
[421876547,1778262642000,-906.83,0.0001452,2]
[421876550,1778262642000,-519.15,0.0001452,2]
[421876552,1778262642000,-549.41,0.0001452,2]
[421876554,1778262642000,-500.0,0.0001452,2]
[421876555,1778262642000,-500.0,0.0001452,2]
[421876557,1778262642000,-558.5,0.0001452,2]
[421876559,1778262642000,-1398.263,0.00014571,2]
[421876562,1778262642000,-442.0,0.00014571,2]
[421876561,1778262642000,-645.0,0.00014571,2]
[421876564,1778262642000,-185.0,0.00014571,2]
[421876566,1778262642000,-218.758,0.00014571,2]
[421876568,1778262642000,-200.0,0.00014584,2]
[421876549,1778262642000,-1043.9,0.0001452,2]
[421876571,1778262642000,-505.2,0.00014794,2]
[421876569,1778262642000,-390.20595981,0.00014794,2]
[421876603,1778262642000,-445.202766,0.00014883,2]
[421876596,1778262642000,-500.0,0.00014794,2]
[421876595,1778262642000,-549.41,0.00014794,2]
[421876593,1778262642000,-519.15,0.00014794,2]
[421876584,1778262642000,-500.0,0.00014794,2]
[421876600,1778262642000,-558.5,0.00014794,2]
[421876582,1778262642000,-500.0,0.00014794,2]
[421876581,1778262642000,-635.3,0.00014794,2]
[421876579,1778262642000,-506.24,0.00014794,2]
[421876577,1778262642000,-3266.07,0.00014794,2]
[421876573,1778262642000,-500.0,0.00014794,2]
[421876575,1778262642000,-500.0,0.00014794,2]
[421876591,1778262642000,-1043.9,0.00014794,2]
[421876724,1778262643000,-500.0,0.000156,2]
[421876723,1778262643000,-500.0,0.000156,2]
[421876721,1778262643000,-4607.93696002,0.00015596,2]
[421876722,1778262643000,-10159.02338976,0.000156,2]
[421876717,1778262643000,-295.70088,0.00015572,7]
[421876718,1778262643000,-272.061733,0.00015572,2]
[421876708,1778262643000,-160.0,0.00015572,7]
[421876715,1778262643000,-227.85044,0.00015572,7]
[421876725,1778262643000,-505.2,0.00015616,2]
[421876711,1778262643000,-442.675021,0.00015572,7]
[421876720,1778262643000,-350.704576,0.00015582,2]
[421876713,1778262643000,-160.0,0.00015572,7]
[421876741,1778262643000,-635.3,0.00015616,2]
[421876737,1778262643000,-3266.07,0.00015616,2]
[421876739,1778262643000,-506.24,0.00015616,2]
[421876755,1778262643000,-549.41,0.00015616,2]
[421876753,1778262643000,-519.15,0.00015616,2]
[421876759,1778262643000,-410.56485938,0.00015616,2]
[421876757,1778262643000,-500.0,0.00015616,2]
[421876761,1778262643000,-558.5,0.00015616,2]
[421876743,1778262643000,-500.0,0.00015616,2]
[421876745,1778262643000,-564.69,0.00015616,2]
[421876747,1778262643000,-500.0,0.00015616,2]
[421876765,1778262643000,-192.2569812,0.000157,2]
[421876709,1778262643000,-301.33751,0.00015572,7]
[421876749,1778262643000,-906.83,0.00015616,2]
[421876727,1778262643000,-500.0,0.00015616,2]
[421876706,1778262643000,-310.979599,0.00015572,2]
[421876678,1778262643000,-635.3,0.00015342,2]
[421876701,1778262643000,-200.0,0.00015434,2]
[421876763,1778262643000,-1113.09075441,0.000157,2]
[421876656,1778262643000,-500.0,0.00015068,2]
[421876657,1778262643000,-558.5,0.00015068,2]
[421876659,1778262643000,-3310.6,0.00015092,2]
[421876661,1778262643000,-10159.02338976,0.000152,2]
[421876663,1778262643000,-600.0,0.00015293,2]
[421876666,1778262643000,-493.51085908,0.00015315,2]
[421876665,1778262643000,-10159.02338976,0.000153,2]
[421876681,1778262643000,-564.69,0.00015342,2]
[421876668,1778262643000,-505.2,0.00015342,2]
[421876672,1778262643000,-500.0,0.00015342,2]
[421876674,1778262643000,-3266.07,0.00015342,2]
[421876704,1778262643000,-10159.02338976,0.000155,2]
[421876676,1778262643000,-506.24,0.00015342,2]
[421876679,1778262643000,-500.0,0.00015342,2]
[421876683,1778262643000,-500.0,0.00015342,2]
[421876692,1778262643000,-500.0,0.00015342,2]
[421876694,1778262643000,-500.0,0.00015342,2]
[421876695,1778262643000,-558.5,0.00015342,2]
[421876697,1778262643000,-246.16148269,0.00015431,2]
[421876688,1778262643000,-519.15,0.00015342,2]
[421876690,1778262643000,-549.41,0.00015342,2]
[421876686,1778262643000,-1043.9,0.00015342,2]
[421876685,1778262643000,-906.83,0.00015342,2]
[421876699,1778262643000,-171.31943148,0.00015431,2]
[421876703,1778262643000,-1113.09075441,0.000155,2]
[421876670,1778262643000,-582.71768468,0.00015342,2]
[421876751,1778262643000,-1043.9,0.00015616,2]
[421876828,1778262643000,-152.0,0.00015942,30]
[421876779,1778262643000,-168.399204,0.00015841,7]
[421876767,1778262643000,-192.25698119,0.000157,2]
[421876832,1778262643000,-152.0,0.00015971,7]
[421876840,1778262643000,-1248.80722793,0.00016,2]
[421876836,1778262643000,-152.0,0.00015976,30]
[421876838,1778262643000,-1113.09075441,0.00016,2]
[421876842,1778262643000,-160.0,0.00016,3]
[421876855,1778262643000,-189.34877201,0.00016137,2]
[421876845,1778262643000,-500.0,0.0001607,2]
[421876843,1778262643000,-161.58879827,0.00016,3]
[421876847,1778262643000,-1113.09075441,0.000161,2]
[421876853,1778262643000,-803.59025149,0.00016104,2]
[421876857,1778262643000,-152.0,0.00016153,30]
[421876830,1778262643000,-152.0,0.00015947,7]
[421876859,1778262643000,-505.2,0.00016164,2]
[421876849,1778262643000,-10159.02338976,0.000161,2]
[421876862,1778262643000,-500.0,0.00016164,2]
[421876864,1778262643000,-3266.07,0.00016164,2]
[421876866,1778262643000,-506.24,0.00016164,2]
[421876868,1778262643000,-635.3,0.00016164,2]
[421876879,1778262643000,-1043.9,0.00016164,2]
[421876881,1778262643000,-519.15,0.00016164,2]
[421876870,1778262643000,-500.0,0.00016164,2]
[421876872,1778262643000,-564.69,0.00016164,2]
[421876877,1778262643000,-906.83,0.00016164,2]
[421876874,1778262643000,-500.0,0.00016164,2]
[421876883,1778262643000,-549.41,0.00016164,2]
[421876851,1778262643000,-462.32,0.000161,2]
[421876834,1778262643000,-152.0,0.00015971,7]
[421876824,1778262643000,-152.0,0.00015942,7]
[421876818,1778262643000,-2734.76689149,0.00015931,2]
[421876781,1778262643000,-160.0,0.00015841,7]
[421876769,1778262643000,-195.955437,0.00015778,7]
[421876783,1778262643000,-365.225296,0.00015841,7]
[421876771,1778262643000,-4184.07928494,0.00015784,3]
[421876775,1778262643000,-10159.02338976,0.000158,2]
[421876777,1778262643000,-241.244781,0.00015841,2]
[421876773,1778262643000,-1113.09075441,0.000158,2]
[421876784,1778262643000,-570.450593,0.00015841,7]
[421876788,1778262643000,-500.0,0.0001589,2]
[421876786,1778262643000,-505.2,0.0001589,2]
[421876823,1778262643000,-152.0,0.00015937,7]
[421876792,1778262643000,-506.24,0.0001589,2]
[421876798,1778262643000,-564.69,0.0001589,2]
[421876790,1778262643000,-3266.07,0.0001589,2]
[421876794,1778262643000,-635.3,0.0001589,2]
[421876821,1778262643000,-152.0,0.00015937,7]
[421876802,1778262643000,-906.83,0.0001589,2]
[421876817,1778262643000,-2519.02371999,0.00015913,2]
[421876811,1778262643000,-500.0,0.0001589,2]
[421876815,1778262643000,-10159.02338976,0.000159,2]
[421876826,1778262643000,-152.0,0.00015942,7]
[421876808,1778262643000,-549.41,0.0001589,2]
[421876806,1778262643000,-519.15,0.0001589,2]
[421876804,1778262643000,-1043.9,0.0001589,2]
[421876800,1778262643000,-500.0,0.0001589,2]
[421876796,1778262643000,-500.0,0.0001589,2]
[421876813,1778262643000,-558.5,0.0001589,2]
[421876901,1778262644000,-500.0,0.00016238,2]
[421876885,1778262644000,-500.0,0.00016164,2]
[421876887,1778262644000,-558.5,0.00016164,2]
[421876889,1778262644000,-10159.02338976,0.000162,2]
[421876891,1778262644000,-1248.80722793,0.000162,2]
[421876893,1778262644000,-500.0,0.00016238,2]
[421876905,1778262644000,-831.119,0.00016238,2]
[421876909,1778262644000,-1128.17729011,0.0001625,2]
[421876903,1778262644000,-500.0,0.00016238,2]
[421876899,1778262644000,-500.0,0.00016238,2]
[421876920,1778262644000,-1871.82270989,0.0001625,2]
[421876907,1778262644000,-3000.0,0.0001624,2]
[421876895,1778262644000,-500.0,0.00016238,2]
[421876924,1778262644000,-3000.0,0.0001627,2]
[421876926,1778262644000,-3000.0,0.0001628,2]
[421876927,1778262644000,-1341.20475323,0.0001629,2]
[421876922,1778262644000,-3000.0,0.0001626,2]
[421876897,1778262644000,-500.0,0.00016238,2]
[421877102,1778262647000,-1000.0,0.00015434,2]
[421877103,1778262647000,-605.81037848,0.00015913,2]
[421877105,1778262650000,-215.05137662,0.000149,2]
[421877108,1778262650000,-4607.93696002,0.00016291,2]
[421877106,1778262650000,-215.05137661,0.00014904,2]
[421877110,1778262650000,-1645.4965,0.000163,2]
[421877111,1778262650000,-1220.975,0.000163,2]
[421877109,1778262650000,-326.4385,0.000163,2]
[421877118,1778262650000,-1113.09075441,0.000163,2]
[421877116,1778262650000,-1814.22,0.000163,2]
[421877107,1778262650000,-1658.79524677,0.0001629,2]
[421877115,1778262650000,-1814.222,0.000163,2]
[421877113,1778262650000,-2387.6706,0.000163,2]
[421877121,1778262650000,-160.0,0.00016314,7]
[421877112,1778262650000,-1220.97,0.000163,2]
[421877120,1778262650000,-3000.0,0.0001631,2]
[421877114,1778262650000,-1814.222,0.000163,2]
[421877117,1778262650000,-3000.0,0.000163,2]
[421877119,1778262650000,-1248.80722793,0.000163,2]
[421877123,1778262650000,-770.9487983,0.0001632,2]
[421877122,1778262650000,-1949.51304661,0.0001632,2]
[421877165,1778263687000,188.72,8.16e-05,2]
[421877224,1778263842000,-454.36222613,9.813e-05,2]
[421877223,1778263842000,-4867.71731778,9.715e-05,2]
[421877269,1778264240000,3091.61,8.16e-05,2]
[421877294,1778264962000,2685.18,0.00010518,60]
[421877352,1778265034000,-5000.0,9.24e-05,2]
[421877375,1778265035000,-500.0,0.00011501,2]
[421877385,1778265035000,-500.0,0.00011502,2]
[421877391,1778265035000,-500.0,0.00011504,2]
[421877383,1778265035000,-1660.81,0.00011502,2]
[421877382,1778265035000,-4306.1,0.00011502,2]
[421877384,1778265035000,-500.0,0.00011502,2]
[421877389,1778265035000,-500.0,0.00011502,2]
[421877377,1778265035000,-500.0,0.00011501,2]
[421877388,1778265035000,-500.0,0.00011502,2]
[421877393,1778265035000,-151.5,0.00011504,2]
[421877386,1778265035000,-500.0,0.00011502,2]
[421877381,1778265035000,-500.0,0.00011502,2]
[421877387,1778265035000,-500.0,0.00011502,2]
[421877380,1778265035000,-500.0,0.00011502,2]
[421877399,1778265035000,-500.0,0.00011775,2]
[421877394,1778265035000,-259.80713501,0.00011504,2]
[421877404,1778265035000,-500.0,0.00011776,2]
[421877403,1778265035000,-500.0,0.00011775,2]
[421877376,1778265035000,-500.0,0.00011501,2]
[421877392,1778265035000,-500.0,0.00011504,2]
[421877374,1778265035000,-500.0,0.00011501,2]
[421877358,1778265035000,-526.0,9.811e-05,2]
[421877378,1778265035000,-500.0,0.00011501,2]
[421877354,1778265035000,-1221.0,9.427e-05,2]
[421877355,1778265035000,-1353.47284425,9.427e-05,2]
[421877356,1778265035000,-113.94965575,9.427e-05,2]
[421877360,1778265035000,-300.0,9.974e-05,2]
[421877357,1778265035000,-306.48895612,9.547e-05,2]
[421877398,1778265035000,-600.0,0.00011733,2]
[421877359,1778265035000,-215.4433,9.812e-05,2]
[421877364,1778265035000,-10000.0,0.00010425,2]
[421877362,1778265035000,-2787.8941325,9.975e-05,2]
[421877372,1778265035000,-2998.01492537,0.00011071,2]
[421877361,1778265035000,-300.0,9.974e-05,2]
[421877366,1778265035000,-300.0,0.00010633,2]
[421877363,1778265035000,-151.0,9.979e-05,2]
[421877368,1778265035000,-300.0,0.00010633,2]
[421877379,1778265035000,-500.0,0.00011502,2]
[421877370,1778265035000,-420.0,0.00010971,2]
[421877373,1778265035000,-500.0,0.00011501,2]
[421877367,1778265035000,-300.0,0.00010633,2]
[421877371,1778265035000,-420.0,0.00010971,2]
[421877369,1778265035000,-236.91,0.00010959,2]
[421877365,1778265035000,-2891.0462154,0.00010523,2]
[421877400,1778265035000,-500.0,0.00011775,2]
[421877390,1778265035000,-500.0,0.00011502,2]
[421877402,1778265035000,-500.0,0.00011775,2]
[421877424,1778265035000,-500.0,0.00012049,2]
[421877427,1778265035000,-500.0,0.0001205,2]
[421877426,1778265035000,-500.0,0.00012049,2]
[421877428,1778265035000,-500.0,0.0001205,2]
[421877431,1778265035000,-1660.81,0.0001205,2]
[421877433,1778265035000,-500.0,0.0001205,2]
[421877436,1778265035000,-116.55232908,0.0001205,2]
[421877434,1778265035000,-500.0,0.0001205,2]
[421877441,1778265035000,-500.0,0.00012051,2]
[421877429,1778265035000,-500.0,0.0001205,2]
[421877435,1778265035000,-383.44767092,0.0001205,2]
[421877440,1778265035000,-500.0,0.0001205,2]
[421877439,1778265035000,-500.0,0.0001205,2]
[421877438,1778265035000,-47.70363274,0.0001205,2]
[421877442,1778265035000,-347.08873498,0.00012051,2]
[421877444,1778265035000,-500.0,0.00012052,2]
[421877445,1778265035000,-587.0,0.00012069,2]
[421877443,1778265035000,-500.0,0.00012052,2]
[421877446,1778265035000,-3223.97231228,0.00012167,2]
[421877395,1778265035000,-8055.56,0.00011518,15]
[421877437,1778265035000,-136.53636726,0.0001205,2]
[421877422,1778265035000,-500.0,0.00012049,2]
[421877432,1778265035000,-500.0,0.0001205,2]
[421877423,1778265035000,-547.31053122,0.00012049,2]
[421877401,1778265035000,-500.0,0.00011775,2]
[421877430,1778265035000,-4306.1,0.0001205,2]
[421877396,1778265035000,-361.65696823,0.00011547,2]
[421877397,1778265035000,-3108.94147761,0.00011619,2]
[421877405,1778265035000,-500.0,0.00011776,2]
[421877406,1778265035000,-500.0,0.00011776,2]
[421877408,1778265035000,-1660.81,0.00011776,2]
[421877412,1778265035000,-500.0,0.00011776,2]
[421877413,1778265035000,-500.0,0.00011776,2]
[421877409,1778265035000,-500.0,0.00011776,2]
[421877407,1778265035000,-4306.1,0.00011776,2]
[421877410,1778265035000,-500.0,0.00011776,2]
[421877417,1778265035000,-500.0,0.00011777,2]
[421877414,1778265035000,-500.0,0.00011776,2]
[421877415,1778265035000,-500.0,0.00011776,2]
[421877416,1778265035000,-500.0,0.00011777,2]
[421877418,1778265035000,-202.84221837,0.00011777,2]
[421877421,1778265035000,-500.0,0.00011778,2]
[421877420,1778265035000,-500.0,0.00011778,2]
[421877425,1778265035000,-500.0,0.00012049,2]
[421877411,1778265035000,-500.0,0.00011776,2]
[421877419,1778265035000,-500.0,0.00011778,2]
[421877488,1778265036000,-500.0,0.000126,2]
[421877490,1778265036000,-250.0,0.0001264,2]
[421877487,1778265036000,-500.0,0.00012598,2]
[421877485,1778265036000,-500.0,0.00012598,2]
[421877494,1778265036000,-160.0,0.00012862,2]
[421877484,1778265036000,-500.0,0.00012598,2]
[421877483,1778265036000,-500.0,0.00012598,2]
[421877486,1778265036000,-500.0,0.00012598,2]
[421877479,1778265036000,-500.0,0.00012598,2]
[421877478,1778265036000,-234.04922697,0.00012598,2]
[421877493,1778265036000,-218.14771835,0.00012852,2]
[421877476,1778265036000,-500.0,0.00012597,2]
[421877495,1778265036000,-160.0,0.00012862,2]
[421877491,1778265036000,-3343.25928784,0.00012715,2]
[421877502,1778265036000,-4306.1,0.00012872,2]
[421877489,1778265036000,-500.0,0.000126,2]
[421877497,1778265036000,-160.0,0.00012862,2]
[421877507,1778265036000,-500.0,0.00012872,2]
[421877498,1778265036000,-500.0,0.00012871,2]
[421877508,1778265036000,-500.0,0.00012872,2]
[421877496,1778265036000,-161.58879827,0.00012862,2]
[421877499,1778265036000,-500.0,0.00012871,2]
[421877503,1778265036000,-1660.81,0.00012872,2]
[421877505,1778265036000,-215.88,0.00012872,2]
[421877501,1778265036000,-500.0,0.00012872,2]
[421877504,1778265036000,-500.0,0.00012872,2]
[421877506,1778265036000,-500.0,0.00012872,2]
[421877500,1778265036000,-163.06705028,0.00012871,2]
[421877477,1778265036000,-500.0,0.00012597,2]
[421877492,1778265036000,-488.57964825,0.00012772,2]
[421877475,1778265036000,-500.0,0.00012597,2]
[421877453,1778265036000,-500.0,0.00012324,2]
[421877469,1778265036000,-306.83,0.00012329,2]
[421877509,1778265036000,-500.0,0.00012872,2]
[421877454,1778265036000,-262.9939099,0.00012324,2]
[421877455,1778265036000,-4306.1,0.00012324,2]
[421877451,1778265036000,-500.0,0.00012323,2]
[421877448,1778265036000,-500.0,0.00012323,2]
[421877450,1778265036000,-500.0,0.00012323,2]
[421877449,1778265036000,-500.0,0.00012323,2]
[421877452,1778265036000,-500.0,0.00012324,2]
[421877447,1778265036000,-500.0,0.0001224,2]
[421877456,1778265036000,-1660.81,0.00012324,2]
[421877458,1778265036000,-500.0,0.00012324,2]
[421877457,1778265036000,-500.0,0.00012324,2]
[421877461,1778265036000,-500.0,0.00012324,2]
[421877460,1778265036000,-500.0,0.00012324,2]
[421877468,1778265036000,-368.2,0.00012329,2]
[421877466,1778265036000,-530.21,0.00012329,2]
[421877467,1778265036000,-441.84,0.00012329,2]
[421877465,1778265036000,-636.25,0.00012329,2]
[421877463,1778265036000,-500.0,0.00012326,2]
[421877459,1778265036000,-500.0,0.00012324,2]
[421877462,1778265036000,-500.0,0.00012324,2]
[421877464,1778265036000,-500.0,0.00012326,2]
[421877473,1778265036000,-887.85,0.00012329,2]
[421877480,1778265036000,-4306.1,0.00012598,2]
[421877472,1778265036000,-177.57,0.00012329,2]
[421877481,1778265036000,-1660.81,0.00012598,2]
[421877471,1778265036000,-213.08,0.00012329,2]
[421877470,1778265036000,-255.69,0.00012329,2]
[421877482,1778265036000,-500.0,0.00012598,2]
[421877474,1778265036000,-541.34283211,0.00012597,2]
[421877511,1778265036000,-500.0,0.00012874,2]
[421877510,1778265036000,-500.0,0.00012874,2]
[421877518,1778265036000,-180.97953524,0.00013146,2]
[421877543,1778265036000,-416.82498033,0.00013547,2]
[421877541,1778265036000,-500.0,0.00013422,2]
[421877548,1778265036000,-160.0,0.0001369,2]
[421877553,1778265036000,-4306.1,0.00013694,2]
[421877558,1778265036000,-500.0,0.00013694,2]
[421877557,1778265036000,-500.0,0.00013694,2]
[421877552,1778265036000,-500.0,0.00013693,2]
[421877554,1778265036000,-1660.81,0.00013694,2]
[421877551,1778265036000,-500.0,0.00013693,2]
[421877556,1778265036000,-500.0,0.00013694,2]
[421877559,1778265036000,-500.0,0.00013696,2]
[421877560,1778265036000,-500.0,0.00013698,2]
[421877555,1778265036000,-500.0,0.00013694,2]
[421877550,1778265036000,-955.795695,0.0001369,2]
[421877561,1778265036000,-500.0,0.00013698,2]
[421877562,1778265036000,-500.0,0.00013698,2]
[421877563,1778265036000,-500.0,0.00013698,2]
[421877573,1778265036000,-1000.0,0.00013699,2]
[421877572,1778265036000,-2986.6380959,0.00013699,2]
[421877568,1778265036000,-340.880641,0.00013699,2]
[421877566,1778265036000,-180.12969338,0.00013699,2]
[421877565,1778265036000,-500.0,0.00013698,2]
[421877569,1778265036000,-2934.535155,0.00013699,2]
[421877564,1778265036000,-500.0,0.00013698,2]
[421877567,1778265036000,-1000.0,0.00013699,2]
[421877570,1778265036000,-16675.61828535,0.00013699,2]
[421877571,1778265036000,-2183.83509135,0.00013699,2]
[421877574,1778265036000,-822.0,0.0001372,2]
[421877520,1778265036000,-500.0,0.00013146,2]
[421877547,1778265036000,-488.57964822,0.00013664,2]
[421877546,1778265036000,-3796.32,0.00013662,2]
[421877549,1778265036000,-557.897847,0.0001369,2]
[421877539,1778265036000,-500.0,0.0001342,2]
[421877515,1778265036000,-500.0,0.00013146,2]
[421877575,1778265036000,-3595.2373971,0.00013811,2]
[421877512,1778265036000,-720.0,0.00012906,2]
[421877514,1778265036000,-500.0,0.00013145,2]
[421877516,1778265036000,-4306.1,0.00013146,2]
[421877517,1778265036000,-1660.81,0.00013146,2]
[421877519,1778265036000,-500.0,0.00013146,2]
[421877513,1778265036000,-500.0,0.00013145,2]
[421877521,1778265036000,-500.0,0.00013146,2]
[421877523,1778265036000,-500.0,0.00013148,2]
[421877540,1778265036000,-291.38989044,0.00013422,2]
[421877532,1778265036000,-500.0,0.00013419,2]
[421877533,1778265036000,-374.81952312,0.0001342,2]
[421877534,1778265036000,-4306.1,0.0001342,2]
[421877526,1778265036000,-200.3,0.00013151,2]
[421877525,1778265036000,-200.3,0.00013151,2]